Cogmind - Beta 14 @@@ ROGUE MODE // 2024.09.15 @ 21:26:54 Player: s0lid Result: Destroyed by H-55 Commando with Gauss Rifle Performance ------------- Evolutions (3) 1500 Regions Visited (5) 1000 Robots Destroyed (130) 650 Value Destroyed (4245) 4245 Prototype IDs (17) 340 Alien Tech Used (0) 0 Bonus (1073) 1073 TOTAL SCORE: 8808 Bonus ------- High Alert Combat Kills 1073 Cogmind --------- Core Integrity 0/700 Matter 76/300 Energy 150/150 System Corruption 20% Temperature Cool (0) Movement Rolling (90) Location -7/Storage Parts ------- > --- POWER (1) -------- Micro Nuclear Core > --- PROPULSION (4) --- Carbon-fiber Leg Wheel Compact Wheel > --- UTILITY (6) ------ Small Storage Unit Target Analyzer System Shield > --- WEAPON (2) ------- Powered Hammer > --- INVENTORY (8) ---- Improved Deuterium Engine Micro Nuclear Core Carbon-fiber Leg VTOL Module Advanced Heat Sink Improved Light Armor Plating Precision Shock Rifle Peak State ------------ > --- POWER ------------ Improved Deuterium Engine > --- PROPULSION ------- Carbon-fiber Leg Carbon-fiber Leg Improved Airjet VTOL Module > --- UTILITY ---------- Improved Cryofiber Web Large Storage Unit Target Analyzer Hardened Heavy Armor Plating System Shield > --- WEAPON ----------- Cooled Pulse Rifle Precision Assault Rifle > --- INVENTORY -------- Micro Nuclear Core Improved Cesium-ion Thruster Cooled VTOL Module Advanced Heat Sink High-capacity Matter Pod Improved Light Armor Plating Precision Shock Rifle Precision Shock Rifle Cooled Particle Cannon Mini Assault Cannon Advanced EMP Blaster Precision Grenade Launcher Improved Datajack Powered Hammer Spear [Rating: 53] Favorites ----------- Power Improved Deuterium Engine Engine Improved Deuterium Engine Power Core Micro Nuclear Core Propulsion Improved Titanium Leg Treads Light Treads Leg Improved Titanium Leg Wheel Wheel Hover Unit Improved Airjet Flight Unit Improved VTOL Module Utility Large Storage Unit Device Cooling System Storage Large Storage Unit Processor Visual Processing Unit Hackware System Shield Protection Hardened Heavy Armor Plating Weapon Advanced Beam Cannon Energy Gun Medium Laser Energy Cannon Advanced Beam Cannon Ballistic Gun Precision Assault Rifle Ballistic Cannon Advanced Assault Cannon Launcher Advanced EMP Blaster Impact Weapon Powered Hammer Piercing Weapon Spear Special Melee Weapon Improved Datajack Build | -11 -10 -9 -8 -7 -7 ------- Run | Yrd Mat Mat Mat Fac Sto Slots Evolved 6 | . . 2 2 2 . Power . | . . . . . . Propulsion 2 | . . . 1 1 . Utility 4 | . . 2 1 1 . Weapon . | . . . . . . Parts Attached 146 | 4 . 20 17 33 72 Power 13 | . . 3 1 2 7 Engine 12 | . . 3 1 2 6 Core 1 | . . . . . 1 Reactor . | . . . . . . Propulsion 45 | 2 . 5 9 6 23 Treads 2 | . . . . . 2 Leg 20 | . . 2 4 6 8 Wheel 16 | 2 . 3 5 . 6 Hover 3 | . . . . . 3 Flight 4 | . . . . . 4 Utility 44 | . . 8 2 16 18 Device 20 | . . 2 2 10 6 Storage 5 | . . 1 . . 4 Processor 5 | . . 2 . 2 1 Hackware 1 | . . . . . 1 Protection 13 | . . 3 . 4 6 Artifact . | . . . . . . Weapon 44 | 2 . 4 5 9 24 Energy Gun 12 | 1 . 1 2 1 7 Energy Cannon 11 | . . 3 3 4 1 Ballistic Gun 4 | 1 . . . 1 2 Ballistic Cannon 8 | . . . . 2 6 Launcher 4 | . . . . . 4 Special Weapon . | . . . . . . Impact Weapon 2 | . . . . . 2 Slashing Weapon . | . . . . . . Piercing Weapon 2 | . . . . . 2 Special Melee Weapon 1 | . . . . 1 . Unidentified Prototypes 17 | . . 1 3 2 11 Parts Lost 38 | . . 3 1 3 31 Power 4 | . . . . . 4 Propulsion 18 | . . 3 1 . 14 Utility 13 | . . . . 3 10 Weapon 3 | . . . . . 3 Highest Loss Streak 10 | . . 1 1 1 10 To Critical Strikes . | . . . . . . Average Slot Usage (%) 91 | . 57 93 99 96 85 Engine 7 | . . 10 9 7 6 Treads 1 | . . . . . 4 Leg 15 | . . 1 12 29 11 Wheel 6 | . 28 18 13 . 4 Hover 1 | . . . . . 3 Device 13 | . . 8 18 15 11 Storage 7 | . . 10 9 7 6 Processor 8 | . . 2 18 14 2 Hackware 1 | . . . . . 4 Protection 6 | . . 19 . 4 7 Energy Gun 2 | . 14 10 . . 2 Energy Cannon 7 | . . 6 17 12 1 Ballistic Gun 1 | . 14 4 . . 1 Ballistic Cannon 1 | . . . . 2 3 Piercing Weapon 1 | . . . . . 2 Peak Build Rating 53 | 4 4 18 30 48 53 Average Rating 34 | 3 4 13 25 42 41 On Entrance 17 | . 4 4 18 30 47 Naked Turns . | . . . . . . Heaviest Build 70 | 3 3 45 42 63 70 Greatest Support 80 | 10 3 20 51 80 74 Greatest Overweight (x) 13 | . . 13 3 . 10 Average Overweight (x) 1 | . . 1 . . 2 Largest Inventory Capacity 25 | 5 5 15 15 15 25 Average Capacity 14 | 5 5 14 15 15 14 Most Carried 16 | 4 5 15 15 15 16 Average Carried 13 | 3 4 12 14 14 13 Final Capacity 15 | 5 5 15 15 15 8 Final Carried 15 | 4 5 15 15 15 7 Class Distribution -------------------- 65% | Mutant 31% | Scavenger-Mutant 3% | Gladiator Dominant Class ---------------- Mutant | -10/Materials Mutant | -9/Materials Scavenger-Mutant | -8/Materials Mutant | -7/Factory Scavenger-Mutant | -7/Storage Resources | -11 -10 -9 -8 -7 -7 ----------- Run | Yrd Mat Mat Mat Fac Sto Matter Collected 2498 | 247 205 229 170 440 1207 Remotely 159 | . . . . . 159 Salvage Created 5117 | 116 14 863 472 982 2670 Parts 277 | 5 . 55 23 63 131 Haulers Intercepted 9 | . . 2 2 3 2 Recyclers Shooed 5 | 1 . . 1 . 3 Parts Field Recycled . | . . . . . . Retrieved Matter . | . . . . . . Parts Self-Destructed . | . . . . . . Prevented . | . . . . . . Kills | -11 -10 -9 -8 -7 -7 ------- Run | Yrd Mat Mat Mat Fac Sto Combat Hostiles Destroyed 85 | . . 11 8 20 46 Melee 10 | . . . . . 10 Guns 17 | . . 9 . . 8 Cannons 37 | . . 2 6 20 9 AOE 17 | . . . . . 17 Classes Destroyed 16 | 2 1 6 2 1 4 Worker 13 | . . 4 2 3 4 Builder 4 | . . 1 1 1 1 Tunneler 3 | 1 . 1 1 . . Hauler 9 | . . 2 2 3 2 Recycler 8 | 1 . 1 . . 6 Mechanic 2 | . . . . . 2 Operator 3 | . 1 . 1 1 . Watcher 3 | . . 1 . . 2 Swarmer 15 | . . . 3 9 3 Grunt 37 | . . 8 2 4 23 Brawler 1 | . . . . . 1 Duelist 3 | . . . . . 3 Protector 2 | . . . . . 2 Sentry 14 | . . 3 1 4 6 Hunter 5 | . . . 2 . 3 Programmer 8 | . . . . 3 5 Best Kill Streak 13 | 2 1 3 5 5 13 Combat Bots Only 11 | . . 3 4 4 11 Max Kills in Single Turn 5 | 1 1 1 2 2 5 Gunslinging . | . . . . . . Exploded 5 | . . . . . 5 Melee 1 | . . . . . 1 Uniques/NPCs Destroyed . | . . . . . . Combat | -11 -10 -9 -8 -7 -7 -------- Run | Yrd Mat Mat Mat Fac Sto Hostile Shots Fired 855 | . 3 89 34 220 509 Missed 269 | . . 26 9 87 147 Damage Taken 7957 | . 41 799 217 1539 5361 Core 807 | . 12 54 29 126 586 Absorbed by Shields . | . . . . . . Redirected to Shielding 59 | . . . . . 59 Core Remaining (%) 93 | 100 95 86 94 . . Volleys Fired 298 | 7 5 70 29 67 120 Largest 2 | 2 2 2 2 2 2 Hottest 138 | 70 70 136 136 136 138 Shots Fired 541 | 14 10 140 58 135 184 Gun 214 | 14 10 118 . 2 70 Cannon 296 | . . 22 58 133 83 Launcher 31 | . . . . . 31 Special . | . . . . . . Kinetic 141 | 7 5 34 . 16 79 Thermal 352 | 7 5 106 58 119 57 Explosive 16 | . . . . . 16 Electromagnetic 32 | . . . . . 32 Robot Hit Streak 15 | 4 4 12 5 12 15 Robot Miss Streak 7 | 3 2 4 2 4 7 Penetration Max . | . . . . . . Secondary Targets 3 | . . 2 . . 1 Max Gunslinging Chain 1 | . . 1 . . 1 Shots Hit Robots 402 | 8 6 98 33 89 168 Core Hits 229 | 4 3 37 16 41 128 Critical Kills 3 | . . . 3 . . Critical Parts Destroyed 1 | . . . . . 1 Critical Strikes 20 | 1 . 6 3 . 10 Burn 8 | 1 . 6 . . 1 Meltdown 3 | . . . 3 . . Destroy 1 | . . . . . 1 Blast 3 | . . . . . 3 Corrupt 1 | . . . . . 1 Impale 4 | . . . . . 4 Melee Attacks 51 | . . . . . 51 Impact 7 | . . . . . 7 Slashing . | . . . . . . Piercing 44 | . . . . . 44 Sneak Attacks 6 | . . . . . 6 Combat Hostiles . | . . . . . . Follow-up Attacks 4 | . . . . . 4 Damage Inflicted 11230 | 81 60 1162 811 2096 7020 Guns 2258 | 81 60 1000 . 21 1096 Cannons 4535 | . . 162 811 2075 1487 Explosions 3069 | . . . . . 3069 Melee 1368 | . . . . . 1368 Ramming . | . . . . . . Kinetic 2063 | 31 22 224 . 355 1431 Thermal 4702 | 50 38 938 811 1741 1124 Explosive 1607 | . . . . . 1607 Electromagnetic 1490 | . . . . . 1490 Impact 184 | . . . . . 184 Slashing . | . . . . . . Piercing 1184 | . . . . . 1184 Highest Corruption 20 | . . 4 . 4 20 Average Corruption 7 | . . 4 . 3 9 Corruption Purged . | . . . . . . Corruption Blocked . | . . . . . . Effects 82 | . . 4 . 8 70 Message Errors 19 | . . 1 . 2 16 Matter Fused 16 | . . . . 2 14 Heat Flow Errors 9 | . . . . . 9 Energy Discharges 10 | . . . . 1 9 Parts Rejected 2 | . . 1 . . 1 Parts Fused 1 | . . . . . 1 Data Loss (minor) 6 | . . 1 . 1 4 Data Loss (major) 5 | . . . . 1 4 Misfires 2 | . . . . 1 1 Alerts 3 | . . 1 . . 2 Misdirections 2 | . . . . . 2 Weapon Failures 7 | . . . . . 7 Overload Shots 3 | . . . . . 3 Overflow Damage 276 | . . . 14 53 209 Projectiles 83 | . . . 14 53 16 Explosions 123 | . . . . . 123 Melee 70 | . . . . . 70 Knockbacks 9 | . . . . 1 8 Impact 1 | . . . . . 1 Kinetic 7 | . . . . 1 6 Secondary 1 | . . . . . 1 Self-Inflicted Damage 426 | . . . . . 426 Shots 15 | . . . . . 15 Rammed . | . . . . . . Targets Rammed . | . . . . . . Kicked . | . . . . . . Crushed . | . . . . . . Highest Temperature 517 | 40 20 252 114 400 517 Average Temperature 131 | 19 15 67 71 130 167 Received Heat Transfer 1869 | . 21 375 54 255 1164 Effects 16 | . . 2 . 1 13 Shutdowns 1 | . . . . . 1 Energy Bleed 4 | . . . . . 4 Interference 8 | . . 2 . 1 5 Matter Decay 1 | . . . . . 1 Short Circuit 1 | . . . . . 1 Damage (minor) 1 | . . . . . 1 Siege Activations . | . . . . . . Robots Corrupted 2 | . . . . . 2 Combat Hostiles 2 | . . . . . 2 Parts Fried 9 | . . . . . 9 Impact Corruptions 2 | . . . . . 2 Robots Melted 3 | . . . 3 . . Combat Hostiles 2 | . . . 2 . . Parts Melted 21 | 1 1 6 6 4 3 Heat Transferred 9392 | 222 111 3034 1295 2960 1770 Parts Sabotaged . | . . . . . . Parts Stolen . | . . . . . . Parts Stripped . | . . . . . . Power Chain Reactions 8 | . . . . . 8 Alert | -11 -10 -9 -8 -7 -7 ------- Run | Yrd Mat Mat Mat Fac Sto Peak Influence 1262 | 10 41 338 330 522 1262 Initial 203 | . 6 16 102 111 203 Average 454 | 3 14 158 234 273 828 Maximum Alert Level 4 | . . 1 1 2 4 Low Security (%) 30 | 100 100 68 31 43 . Level 1 22 | . . 31 68 16 7 Level 2 15 | . . . . 39 7 Level 3 29 | . . . . . 78 Level 4 2 | . . . . . 6 Level 5 . | . . . . . . High Security . | . . . . . . Max Security . | . . . . . . Squads Dispatched 27 | . 1 3 1 7 15 Investigation 4 | . . 3 . . 1 Extermination 8 | . . . . 3 5 Reinforcement 6 | . 1 . 1 1 3 Assault 5 | . . . . . 5 Garrison 4 | . . . . 3 1 Intercept . | . . . . . . Searches Triggered . | . . . . . . Construction Impeded 1 | . . . . . 1 Haulers Reinforced 2 | . . . . . 2 Active Scanning Responses . | . . . . . . Cargo Convoy Interrupts . | . . . . . . Stealth | -11 -10 -9 -8 -7 -7 --------- Run | Yrd Mat Mat Mat Fac Sto Distress Signals 3 | . . . 1 . 2 Communications Jammed 1 | . . . . . 1 Distress Signals . | . . . . . . Times Spotted 142 | . 4 20 18 25 75 Peak Tracking Total 13 | . 3 4 5 4 13 Tactical Retreats 14 | . 1 3 . 2 8 Traps | -11 -10 -9 -8 -7 -7 ------- Run | Yrd Mat Mat Mat Fac Sto Traps Triggered 4 | . . 3 . 1 . Indirectly . | . . . . . . Trap Hack Attempts 1 | . . . . 1 . Triggered . | . . . . . . Disarmed . | . . . . . . Reprogrammed . | . . . . . . Reused . | . . . . . . Traps Extracted . | . . . . . . Installed . | . . . . . . Triggered . | . . . . . . Machines | -11 -10 -9 -8 -7 -7 ---------- Run | Yrd Mat Mat Mat Fac Sto Machines Disabled 10 | . . . 1 1 8 Max in Single Turn 3 | . . . 1 1 3 Garrison Access 1 | . . . . . 1 Machines Repaired . | . . . . . . Machines Dismantled . | . . . . . . Machines Sabotaged . | . . . . . . Overloaded Fab Kills . | . . . . . . Hacking | -11 -10 -9 -8 -7 -7 --------- Run | Yrd Mat Mat Mat Fac Sto Machines Accessed 8 | . . 1 2 2 3 Terminals 5 | . . 1 1 . 3 Fabricators 1 | . . . . 1 . Repair Stations 1 | . . . . 1 . Recycling Units 1 | . . . 1 . . Scanalyzers . | . . . . . . Garrison Access . | . . . . . . Total Hacks 21 | . . 3 5 2 11 Successful 7 | . . 1 2 1 3 Failed 14 | . . 2 3 1 8 Catastrophic 1 | . . . . . 1 Database Lockouts . | . . . . . . Manual 14 | . . 3 2 . 9 Terminals 16 | . . 3 2 . 11 Fabricators 1 | . . . . 1 . Repair Stations 1 | . . . . 1 . Recycling Units 3 | . . . 3 . . Scanalyzers . | . . . . . . Garrison Access . | . . . . . . Terminal Hacks 2 | . . 1 . . 1 Part Schematic 1 | . . . . . 1 Robot Analysis 1 | . . 1 . . . Fabricator Hacks 1 | . . . . 1 . Build 1 | . . . . 1 . Repair Station Hacks . | . . . . . . Recycling Unit Hacks 1 | . . . 1 . . Report Inventory 1 | . . . 1 . . Scanalyzer . | . . . . . . Garrison Access Hacks . | . . . . . . Unauthorized Hacks 3 | . . . 1 . 2 Terminals 2 | . . . . . 2 Botnet 1 | . . . . . 1 Operators 1 | . . . . . 1 Fabricators . | . . . . . . Repair Stations . | . . . . . . Recycling Units 1 | . . . 1 . . Mask 1 | . . . 1 . . Scanalyzers . | . . . . . . Garrison Access . | . . . . . . Data Cores Recovered 1 | . . . . 1 . Used . | . . . . . . Hacking Detections 7 | . . 1 2 1 3 Full Trace Events 1 | . . . . . 1 Feedback Events . | . . . . . . Feedback Blocked . | . . . . . . Robot Schematics Acquired . | . . . . . . Robots Built . | . . . . . . Authchips . | . . . . . . Time . | . . . . . . Total Robot Build Rating . | . . . . . . Part Schematics Acquired 1 | . . . . . 1 Parts Built 2 | . . . . 2 . Authchips . | . . . . . . Time 47 | . . . . 47 . Total Part Build Rating 10 | . . . . 10 . Parts Repaired . | . . . . . . Time . | . . . . . . Parts Recycled . | . . . . . . Recycled Matter . | . . . . . . Retrieved Matter . | . . . . . . Retrieved Components . | . . . . . . Parts Scanalyzed . | . . . . . . Part Schematics Acquired . | . . . . . . Parts Damaged . | . . . . . . Bothacking | -11 -10 -9 -8 -7 -7 ------------ Run | Yrd Mat Mat Mat Fac Sto Used RIF Installer . | . . . . . . Robots Hacked . | . . . . . . Non-combat . | . . . . . . Combat . | . . . . . . Robot Hacks Applied . | . . . . . . Relay Couplers Released 2 | . . . . . 2 Machine Destruction 2 | . . . . . 2 Fabnet Peak Effective % . | . . . . . . Robots Rewired . | . . . . . . Allies Hacked . | . . . . . . Hacks Repelled . | . . . . . . Allies | -11 -10 -9 -8 -7 -7 -------- Run | Yrd Mat Mat Mat Fac Sto Total Allies . | . . . . . . Largest Group . | . . . . . . Highest-Rated Group . | . . . . . . Highest-Rated Ally . | . . . . . . Total Orders . | . . . . . . Ally Attacks . | . . . . . . Total Damage . | . . . . . . Kills . | . . . . . . Allies Corrupted . | . . . . . . Allies Melted . | . . . . . . Intel | -11 -10 -9 -8 -7 -7 ------- Run | Yrd Mat Mat Mat Fac Sto Robot Analysis Total 1 | . . 1 . . . Derelict Logs Recovered . | . . . . . . Drone Launches . | . . . . . . Drone Recoveries . | . . . . . . Exploration | -11 -10 -9 -8 -7 -7 ------------- Run | Yrd Mat Mat Mat Fac Sto Turns Passed 4638 | 47 78 616 677 1471 1749 Spaces Moved 2447 | 33 115 319 411 834 735 Core 163 | 29 115 18 . . 1 Treads 3 | . . . . . 3 Legs 1305 | . . 5 175 834 291 Wheels 962 | 4 . 296 236 . 426 Hover 14 | . . . . . 14 Flight . | . . . . . . Fastest Speed 50 | 50 50 50 95 130 86 Average Speed 126 | 53 50 105 111 130 154 Slowest Speed 700 | 80 50 700 270 130 550 Overloaded Moves . | . . . . . . Propulsion Burnouts . | . . . . . . Robots Hopped . | . . . . . . Cave-ins Triggered . | . . . . . . Exploration Rate (%) 24 | 3 24 25 30 18 49 Regions Visited 5 Branch Regions 1 Pre-discovered Areas . | . . . . . . Known Exits Taken . | . . . . . . Unknown Exits Taken 5 | 1 1 1 1 1 . Scrap Searched . | . . . . . . Spaces Dug 16 | . . . . . 16 Terrain Destroyed 172 | . . . 6 33 133 Melee . | . . . . . . Projectile 24 | . . . 6 1 17 AOE 148 | . . . . 32 116 Terrain Rammed . | . . . . . . Walls Destroyed . | . . . . . . Machines Disabled . | . . . . . . Actions | -11 -10 -9 -8 -7 -7 --------- Run | Yrd Mat Mat Mat Fac Sto Total 3375 | 47 125 466 574 1092 1071 Wait 276 | . 5 27 88 112 44 Move 2442 | 32 114 318 410 833 735 Hop . | . . . . . . Pick Up 62 | 4 1 14 9 16 18 Fast Attach 70 | 4 . 14 9 10 33 Attach 25 | . . 2 4 5 14 Detach 26 | . . 5 4 5 12 Swap 52 | . . 4 5 18 25 Drop 76 | . . 12 16 25 23 Fire 298 | 7 5 70 29 67 120 Melee 47 | . . . . . 47 Ram . | . . . . . . Kick . | . . . . . . Crush . | . . . . . . Escape Stasis . | . . . . . . Rewire . | . . . . . . Trap 1 | . . . . 1 . Miscellaneous . | . . . . . . Route ------- -11/Scrapyard -10/Materials -9/Materials -8/Materials -7/Factory (discovered 3 exits: [*Fac] / *Sto x2) -7/Storage History --------- Turn | Location | Event 12 | -11/Scrapyard | Discovered new exit (range 16) 48 | -11/Scrapyard | Entered Materials 117 | -10/Materials | Discovered new exit (range 3) 126 | -10/Materials | Entered another Materials area 126 | -9/Materials | Evolved 2 slots: Utility x2 304 | -9/Materials | Build established: Mutant 687 | -9/Materials | Discovered new exit (range 17) 742 | -9/Materials | Entered another Materials area 742 | -8/Materials | Evolved 2 slots: Propulsion x1, Utility x1 846 | -8/Materials | Discovered new exit (range 17) 938 | -8/Materials | Build established: Scavenger-Mutant 1419 | -8/Materials | Build established: Mutant 1419 | -8/Materials | Entered Factory 1419 | -7/Factory | Evolved 2 slots: Propulsion x1, Utility x1 1527 | -7/Factory | Fabricated Imp. Cryofiber Web (x2) 1701 | -7/Factory | Discovered new exit (range 14) 1988 | -7/Factory | Garrison activated, responded to threat 2032 | -7/Factory | Discovered new exit (range 9) 2549 | -7/Factory | Discovered new exit (range 9) 2890 | -7/Factory | Entered Storage 3290 | -7/Storage | First assault squad dispatched 3362 | -7/Storage | Core integrity fell below 50% 3431 | -7/Storage | Lost 10 parts (1p4n4u1w) 3712 | -7/Storage | Build established: Scavenger-Mutant 3886 | -7/Storage | System corruption reached 10% 4248 | -7/Storage | Core integrity fell below 20% 4286 | -7/Storage | Lost 5 parts (1p3n1u) 4559 | -7/Storage | Destroyed 11 combat bots 4565 | -7/Storage | Lost 3 parts (1n2u) 4639 | -7/Storage | Destroyed by H-55 Commando with Gauss Rifle Last Messages --------------- 04626_ R-06 Scavenger collects Corrupted Wheel. 04627_ U-05 Engineer lays Concrete. 04627_ Penetrated by Slug. 04627_ Wheel destroyed. 04628_ K-01 Serf collects debris. 04629_ U-05 Engineer lays Concrete. 04629_ K-01 Serf collects debris. 04630_ The unstable cave ceiling collapses. 04630_ H-55 Commando crushed by falling debris. 04630_ Penetrated by Slug. 04630_ Hrd. Heavy Armor Plating destroyed. 04630_ K-01 Serf collects debris. 04631_ System corrupted: Energy discharge (-39). 04633_ U-05 Engineer lays Concrete. 04633_ Slug penetrates Storage Shell. 04633_ K-01 Serf collects debris. 04634_ U-05 Engineer lays Concrete. 04636_ Slug penetrates Earth. 04638_ K-01 Serf collects debris. 04639_ Penetrated by Slug. Map ----- +----------------------------------------------------+ | #% #????????????????????????????????????? | | + #????????????????????????????????????? | | # #????????????????????????????????????? | | # ! #????????????????????????????????????? | | # #????????????????????????????????????? | | # #????????????????????????????????????? | | % ##########?????#####??????????????????????????? | | #??????????????# #??????????????????????????? | | #??????????????# #??????????????????????????? | | #??????????????# #??????????????????????????? | | #??????????????# #??????????????????????????? | | #?????? ???????# #??????????????????????????? | | #???? ""???????# #??????????????????????o???? | | #??"" ""???????# #??????????????????????????? | | !% # "" ""???????# ###????????????????????????? | | %*%+ "" ""???????# T#????????????????????????? | | % # """ ""???????# ""#?##?????????????????????? | | % # ???????# ####"""#???????????????????? | | ###??########### ## #"Y"###?????????????????? | | %% #????????? # ## ?????????????????? | | %#???????"""" # ## """ """ ????????????????? | | #???????" ]"" ## """ """ ????????????????? | | #???????" """ # """ """ +???????????????? | | #####???"" " # "" """ #???????????????? | | # ## ???" r """ #???????????????? | | # ## """ % # @ % #???????????????? | | %# ## h #???????????????? | | + ######### ##+##k#####+####???????????????? | | % # #??????## #???????????????????????? | | %# #??????# #???????????????????????? | | # #?????#### #???????????????????????? | | ##+########### #???????????????????????? | | !% + #???????????????????????? | | ## #% ]=" #???????????????????????? | | ?# # "" #???????????????????????? | | ?# ! #???????????????????????? | | ?# ########### #???????????????????????? | | ?#####?????????## # ###???????????????????????? | | ????????????????########?????????????????????????? | | ?????????????????????????????????????????????????? | | ?????????????????????????????????????????????????? | | | | | | | | | | | | | | | | | | | +----------------------------------------------------+ Best States ------------- Heat Dissipation 72 Energy Generation 18 Energy Capacity 310 Matter Stores 300 Matter Capacity 300 Sight Range 18 Terrain Scan Range 16 Terrain Scan Density 10 Jamming Range 12 Base Temperature (-) 150 Corruption Block 8 Armor Coverage 825 Core Shielding 20 Weapon Shielding 66 Evasion (%) 55 Targeting Accuracy 5 Target Analysis 5 Recoil Reduction 1 Particle Charging 15 Force Boost 20 Defensive Hacking 10 Item Schematics ----------------- Imp. Cooling System | -7/Storage | Hacked Robot Schematics ------------------ None Fabricated ------------ Imp. Cryofiber Web | x2 | -7/Factory | Preloaded Alien Tech Used ----------------- None Achievements -------------- None Challenges ------------ None Game ------ Seed SigixActuatorRailgun Manual? 0 Play Time 01:02:02 Cumulative 197.1 hours Start 2024.09.15 @ 14:29:39 End 2024.09.15 @ 21:26:54 Sessions 3 Manual Loads 0 Difficulty Rogue Special Mode None Game No. 199 Rogue 199 Adventurer 0 Explorer 0 Win Type - Total 0 Types 0/0/0/0/0/0/0/0/0 Lore% 23 Gallery% 58 Achievement% 44 Wizard Run 0 Options --------- Layout 0 ASCII 0 Keyboard 1 Movement Vi Keybinds 0 Fullscreen 1 Font 24/Smallcaps Map View 76x50 Zoom Use 0% Tactical HUD 1 Map Filters NONE Filters NONE Steam 1 RUN: b1f697df-d4d3-4b3a-9d53-4c85a8278d20